[Event "French-ch Youth U18 2022"]
[Site "Agen"]
[Date "2022.04.18"]
[Round "3.8"]
[White "Bellahcene, Sofia"]
[Black "Lordier, Sophia"]
[Result "0-1"]
[ECO "B34"]
[WhiteElo "1813"]
[BlackElo "1725"]
[Annotator "NA RC"]
[PlyCount "61"]
[EventDate "2022.04.17"]
[EventType "swiss"]
[EventCountry "FRA"]
[SourceTitle "playchess.com"]
[Source "ChessBase"]
[SourceQuality "1"]
[TimeControl "5400+30"]

1. e4 {[%emt 0:00:03]} c5 {[%emt 0:06:10]} 2. Nf3 {[%emt 0:00:27]} Nc6 {[%emt 0:00:23]} 3. d4 {[%emt 0:00:10]} cxd4 {[%emt 0:00:15]} 4. Nxd4 {[%emt 0:00:15]} Nf6 {[%emt 0:02:12]} 5. Nc3 {[%emt 0:00:15]} e5 {[%emt 0:00:49]} 6. Ndb5 {[%emt 0:01:48]} d6 {[%emt 0:00:05]} 7. Nd5 {[%emt 0:00:04]} Nxd5 {[%emt 0:00:17]} 8. exd5 {[%emt 0:00:24]} Ne7 {[%emt 0:00:44]} 9. c4 {[%emt 0:00:55]} Ng6 {[%emt 0:00:30]} 10. Bd3 {[%emt 0:07:08]} (10. Qa4 $5 {[%cal Rb5c7]} Bd7 11. Qb4 $11) 10... Be7 {[%emt 0:02:57]} 11. O-O {[%emt 0:01:43]} a6 {[%emt 0:04:34]} 12. Nc3 {[%emt 0:02:26]} O-O {[%emt 0:06:11]} 13. Be3 {[%emt 0:11:24]} f5 $11 {[%emt 0:03:23]} 14. f3 {[%emt 0:03:32]} Bg5 {[%emt 0:02:47]} 15. Qd2 {[%emt 0:02:27]} Bf4 16. Qf2 {[%emt 0:05:40]} Qg5 {[%emt 0:07:13]} 17. Bb6 {[%emt 0:04:01]} e4 {[%emt 0:10:19]} 18. Bxe4 {[%emt 0:08:46]} fxe4 {[%emt 0:00:27]} 19. Nxe4 {[%emt 0:00:04]} Qh5 {[%emt 0:10:55]} 20. g3 {[%emt 0:03:19]} Be5 {[%emt 0:00:37]} 21. Qe3 {[%emt 0:01:49]} Bh3 {[%emt 0:05:20]} 22. Rf2 {[%emt 0:00:33]} Ne7 {[%emt 0:02:18]} 23. Qg5 {[%emt 0:02:06]} Qxg5 {[%emt 0:01:05]} 24. Nxg5 {[%emt 0:00:03]} Bf5 {[%emt 0:00:42]} 25. g4 {[%emt 0:03:15]} h6 {[%emt 0:06:42]} 26. Nh3 {[%emt 0:02:34]} Bd7 {[%emt 0:00:41]} 27. f4 {[%emt 0:04:59]} Bf6 {[%emt 0:00:18]} 28. Rg2 {[%emt 0:06:13]} Rac8 {[%emt 0:00:43]} 29. Rc1 {[%emt 0:00:37]} Nxd5 {[%emt 0:00:38]} 30. Bf2 {[%emt 0:00:42]} Be7 {[%emt 0:02:03]} 31. Rd1 {[%emt 0:00:35]} 0-1

[Event "French-ch Youth U18 2022"]
[Site "Agen"]
[Date "2022.04.19"]
[Round "4.1"]
[White "Eveno, Nathan"]
[Black "Girel, Joseph"]
[Result "0-1"]
[ECO "C78"]
[WhiteElo "2107"]
[BlackElo "2394"]
[Annotator "TA"]
[PlyCount "140"]
[EventDate "2022.04.17"]
[EventType "swiss"]
[EventCountry "FRA"]
[SourceTitle "playchess.com"]
[Source "ChessBase"]
[SourceQuality "1"]
[TimeControl "5400+30"]

{[%evp 17,140,43,53,0,0,0,26,0,0,-21,-19,-15,-10,-35,-15,-19,-21,-25,-19,-94,-89,-86,-95,-85,-71,-159,0,0,0,-27,-37,-32,-27,-54,-13,-14,-20,-70,-69,-62,-22,-56,-58,-145,-145,-138,-143,-134,-142,-137,-133,-143,-135,-151,-147,-161,-143,-160,-153,-134,-58,-45,-49,-416,-414,-414,-395,-383,-225,-225,-225,-402,-372,-456,-456,-456,-320,-311,-333,-364,-407,-456,-456,-456,-218,-222,-230,-247,-247,-3497,-2324,-2116,-1213,-1118,-1025,-29955,-29956,-29961,-29963,-29959,-29963,-29960,-29952,-29967,-29967,-29966,-29966,-29966,-29967,-29967,-29968,-29968,-29969,-29968,-29968,-29975,-29977,-29976,-29978,-29977,-29978,-29980,-29981,-29981,-29978]} 1. e4 {[%emt 0:00:02]} e5 {[%emt 0:04:29]} 2. Nf3 {[%emt 0:00:12]} Nc6 {[%emt 0:00:49]} 3. Bb5 {[%emt 0:00:25]} a6 {[%emt 0:00:22]} 4. Ba4 {[%emt 0:00:19]} Nf6 {[%emt 0:00:19]} 5. O-O {[%emt 0:00:14]} b5 {[%emt 0:00:37]} 6. Bb3 {[%emt 0:00:05]} Bc5 {[%emt 0:00:12]} 7. c3 {[%emt 0:00:35]} d6 {[%emt 0:00:10]} 8. a4 {[%emt 0:00:16]} Rb8 {[%emt 0:00:16]} 9. d4 {[%emt 0:00:12]} Bb6 {[%emt 0:00:13]} 10. a5 {[%emt 0:00:27] C78: Ruy Lopez: Archangelsk and Möller Defences.} (10. Na3 $14) 10... Ba7 $1 $11 {[%emt 0:00:13]} (10... Nxa5 11. Rxa5 Bxa5 12. dxe5) (10... Bxa5 $2 11. Bd5 (11. d5 Ne7 $18) 11... Nxd5 12. exd5 $18) 11. h3 {[%emt 0:09:03]} Bb7 {[%emt 0:06:31]} 12. Re1 {[%emt 0:05:53] White has an edge.} (12. Be3 $5 {[%cal Rd4d5]}) 12... O-O 13. Be3 {[%emt 0:05:11]} exd4 $1 {[%emt 0:03:27]} ({But not} 13... Nxe4 14. d5 $16) 14. cxd4 Nb4 (14... Nxe4 $2 15. d5 $18) 15. d5 {[%emt 0:30:26]} Bxe3 {[%emt 0:02:59]} 16. Rxe3 {[%emt 0:00:24]} c5 {[%emt 0:01:03] [#]} 17. dxc6 $146 {[%emt 0:09:33]} ({Predecessor:} 17. Nc3 Re8 18. Qd2 Nd7 19. Bc2 Nxc2 20. Qxc2 Bc8 21. Ne2 Qf6 22. Re1 b4 23. Nc1 {½-½ (69) Tabatabaei,M (2629)-Schitco,I (2467) Chess.com INT 2020}) 17... Nxc6 {[%emt 0:00:18]} 18. e5 {[%emt 0:01:44]} (18. Ba2 $11) 18... dxe5 $17 {[%emt 0:02:53]} 19. Qxd8 {[%emt 0:03:06]} Rbxd8 {[%emt 0:02:49]} 20. Nxe5 {[%emt 0:01:10]} Nd4 {[%emt 0:07:19]} 21. Nd2 {[%emt 0:07:28]} (21. Na3 $142) 21... Nc2 $2 {[%emt 0:04:50]} 22. Bxc2 $11 {[%emt 0:00:28] aiming for Ndf3.} Rxd2 {[%emt 0:00:02]} 23. Rc1 {[%emt 0:10:51]} Rc8 {[%emt 0:06:02]} 24. Rc3 {[%emt 0:00:30]} Rxc3 {[%emt 0:00:30]} 25. bxc3 {[%emt 0:02:25]} Kf8 {[%emt 0:05:18]} 26. Kf1 {[%emt 0:04:54]} Ne4 27. Ke1 {[%emt 0:00:14] [#]} (27. Bxe4 $11 Bxe4 28. Re1) 27... Rd5 $1 $15 {[%emt 0:04:57] &Nero is more active.} 28. f4 {[%emt 0:01:56]} Nc5 {[%emt 0:01:43]} (28... Nxc3 $2 29. Bb3 Rxe5+ 30. fxe5 $18) 29. Ke2 {[%emt 0:01:11]} Rd8 {[%emt 0:01:23]} 30. g4 {[%emt 0:02:24]} (30. g3 $15) 30... Re8 $17 {Strongly threatening ...f6.} 31. Kf2 {[%emt 0:00:04]} f6 {[%emt 0:01:28]} 32. Nf3 {[%emt 0:01:07]} Ne4+ {[%emt 0:04:19]} 33. Bxe4 {[%emt 0:02:21]} Rxe4 {[%emt 0:00:02][%mdl 4096] Endgame KRB-KRN} 34. Nd4 Rxf4+ 35. Ke3 {[%emt 0:00:50]} Re4+ {[%emt 0:00:32]} 36. Kd3 {[%emt 0:00:19]} Re5 {[%emt 0:01:53]} 37. c4 {[%emt 0:01:56]} bxc4+ {[%emt 0:03:05]} 38. Rxc4 {[%emt 0:00:19]} Rxa5 {[%emt 0:00:28]} (38... Bg2 $17 {Threatens to win with ...Bf1+.} 39. Rc8+ Kf7) 39. Ne6+ $1 $15 {[%emt 0:00:13]} Ke7 {[%emt 0:04:33]} 40. Rc7+ $2 {[%emt 0:00:22][%mdl 8192] Loses the game.} (40. Nxg7 $15 Kd7 41. Kd4) 40... Kxe6 $19 {[%emt 0:00:09]} 41. Rxb7 {[%emt 0:00:07] KR-KR} Ra3+ {[%emt 0:00:37]} 42. Ke4 Rxh3 {[%emt 0:01:57]} (42... g5 $142 43. Rxh7 Ra4+ 44. Kd3 a5) 43. Rxg7 {[%emt 0:01:13] [#]} Rh4 $1 {[%emt 0:06:22][%cal Oh4g4]} 44. Kf3 {[%emt 0:00:37]} (44. Ke3) 44... h5 {[%emt 0:02:07]} 45. g5 {[%emt 0:00:29]} Ra4 {[%emt 0:02:34]} 46. gxf6 {[%emt 0:00:32]} Kxf6 {[%emt 0:01:57]} 47. Rc7 {[%emt 0:01:12]} h4 48. Rc5 {[%emt 0:00:31]} Ke7 {[%emt 0:04:31]} 49. Rc6 Kf7 {[%emt 0:04:31]} 50. Kg2 {[%emt 0:01:07]} Rg4+ {[%emt 0:00:30]} (50... a5 $142 51. Kh3 Ra1) 51. Kh3 {[%emt 0:00:28] [#]} Rg6 {[%emt 0:00:29]} 52. Rc7+ {[%emt 0:00:30]} Ke6 {[%emt 0:00:47] White must now prevent ...Kd6.} 53. Rc5 $2 {[%emt 0:00:30]} (53. Rc6+ Kf5 54. Rc8) 53... Kd6 {[%emt 0:00:14]} 54. Rc8 {[%emt 0:00:33]} Rh6 {[%emt 0:01:17]} 55. Rc1 {[%emt 0:00:26]} Kd5 {[%emt 0:00:30] ( -> ...a5)} 56. Rc8 {[%emt 0:00:25]} Kd4 {Black mates.} 57. Rc7 {[%emt 0:00:10]} a5 {[%emt 0:02:11]} 58. Ra7 {[%emt 0:00:38]} Rh5 {[%emt 0:00:36]} 59. Kg4 {[%emt 0:00:30]} Re5 60. Kxh4 {[%emt 0:00:47]} Kc3 {[%emt 0:00:18]} 61. Kg4 {[%emt 0:00:25]} Kb4 {[%emt 0:00:37]} 62. Kf4 {[%emt 0:00:06]} Re1 {[%emt 0:00:07]} 63. Rb7+ {[%emt 0:00:57]} Ka3 {[%emt 0:00:10]} 64. Rd7 {[%emt 0:00:36]} a4 {[%emt 0:00:17][%cal Ba5a4,Ba4a3,Ba3a2][%mdl 32]} 65. Rd3+ {[%emt 0:00:19]} Kb2 {[%emt 0:00:15]} 66. Rd8 {[%emt 0:00:39]} a3 {[%emt 0:00:11]} 67. Rb8+ {[%emt 0:00:31]} Ka1 {[%emt 0:00:06]} 68. Kf3 {[%emt 0:00:18]} a2 {[%emt 0:00:06]} 69. Kf2 {[%emt 0:00:21]} Rb1 {[%emt 0:00:03]} 70. Re8 {[%emt 0:00:48]} Kb2 {[%emt 0:00:06] Weighted Error Value: White=0.64/Black=0.16 (very precise)} 0-1

[Event "French-ch Youth U18 2022"]
[Site "Agen"]
[Date "2022.04.19"]
[Round "4.2"]
[White "Bassini, Emile"]
[Black "Fardet, Elouan"]
[Result "0-1"]
[ECO "B69"]
[WhiteElo "2287"]
[BlackElo "2162"]
[Annotator "TA"]
[PlyCount "64"]
[EventDate "2022.04.17"]
[EventType "swiss"]
[EventCountry "FRA"]
[SourceTitle "playchess.com"]
[Source "ChessBase"]
[SourceQuality "1"]
[TimeControl "5400+30"]

{[%evp 23,64,48,67,39,37,31,25,30,27,25,35,4,62,42,81,32,13,18,27,34,51,47,52,51,36,24,93,82,106,89,100,13,33,0,-59,-112,-37,-33,0,0,0,-473,-463]} 1. e4 {[%emt 0:00:03]} c5 {[%emt 0:00:06]} 2. Nf3 {[%emt 0:00:03]} d6 {[%emt 0:00:07]} 3. d4 {[%emt 0:00:03]} cxd4 {[%emt 0:00:06]} 4. Nxd4 {[%emt 0:00:04]} Nf6 {[%emt 0:00:08]} 5. Nc3 {[%emt 0:00:02]} Bd7 {[%emt 0:00:41]} 6. Bg5 {[%emt 0:07:49]} e6 {[%emt 0:00:15]} 7. f4 {[%emt 0:07:09][%cal Bf2f4,Bf4f5][%mdl 32]} Nc6 {[%emt 0:12:28]} 8. Qd2 {[%emt 0:04:05]} a6 {[%emt 0:01:42]} 9. O-O-O {[%emt 0:00:39]} Be7 {[%emt 0:01:03]} 10. Nf3 {[%emt 0:00:19]} b5 {[%emt 0:00:10]} 11. Bxf6 {[%emt 0:00:08]} gxf6 {[%emt 0:00:03]} 12. f5 {[%emt 0:00:11]} Qb6 {[%emt 0:01:01]} 13. Qh6 {[%emt 0:00:08] B69: Sicilian: Richter-Rauzer: 7...a6 8 0-0-0 Bd7 9 f4 Be7 10 Nf3 b5 11 Bxf6.} O-O-O {[%emt 0:02:29]} 14. Qh5 {[%emt 0:00:10]} Rhf8 {[%emt 0:15:25]} 15. Kb1 {[%emt 0:00:05] White has an edge.} Kb8 {[%emt 0:02:41]} 16. Bd3 {[%emt 0:09:11]} Qc5 {[%emt 0:06:45]} 17. Rhe1 {[%emt 0:23:22]} Bc8 {[%emt 0:11:43] [#]} (17... Ne5 $11) 18. Bf1 $146 {[%emt 0:03:54]} (18. Qxh7 Rh8 19. Qg7 (19. Qxf7 Rdf8 $15) 19... Rdg8 20. Qxf7 Qa7 21. fxe6 Nd8 $17) ({Predecessor:} 18. g3 b4 19. Ne2 e5 20. Qxh7 d5 21. Nc1 a5 22. exd5 Rxd5 23. Be4 Rxd1 24. Rxd1 {1-0 (36) Mihok,O (2552)-Praggnanandhaa,R (2608) Chess.com INT 2020}) 18... Ka7 19. Ne2 (19. Qxh7 $6 Rh8 20. Qg7 (20. Qxf7 Rdf8 $11) 20... Rdg8 21. Qxf7 Rf8 $11) ({White should try} 19. Nd2 $16) 19... d5 {[%emt 0:16:36]} (19... exf5 20. Ned4 $16) (19... Nb4 20. c3 Nc6 21. Nf4 $16 (21. Qxh7 Rh8 $11)) 20. exd5 {[%emt 0:01:18]} Nb4 {[%emt 0:05:20]} 21. Nc3 {[%emt 0:01:03][%cal Rd5e6]} Nxd5 {[%emt 0:06:30]} 22. Nxd5 {[%emt 0:00:53]} Rxd5 {[%emt 0:00:21]} 23. Rxd5 {[%emt 0:00:12]} ({Much weaker is} 23. Qxh7 Rxf5 24. Bd3 Rh5 $15) 23... Qxd5 {[%emt 0:00:03]} 24. Qxh7 {[%emt 0:00:47]} e5 {[%emt 0:00:28]} (24... Bb4 $11 {keeps the balance.} 25. Rc1 (25. c3 Bc5 $15) 25... exf5) 25. Bd3 $16 {[%emt 0:01:03]} Rd8 {[%emt 0:01:46][%cal Oe5e4] [#] Threatens to win with ...e4!} 26. a3 $1 {[%emt 0:01:16]} Rd7 {[%emt 0:03:23]} 27. h4 {[%emt 0:01:24]} ({Better is} 27. Qh4 $16) 27... b4 $1 $11 {[%emt 0:01:02]} 28. axb4 {[%emt 0:00:14]} (28. Be4 $14 Qc4 29. Qh6) 28... Bxb4 $15 {[%emt 0:00:21][%cal Be7b4,Bb4a5,Ba5b6][%mdl 32]} 29. Re3 {[%emt 0:17:13]} (29. Re4 $15 Qa5 30. Qh6) 29... Bb7 {[%emt 0:03:10]} ({Black should play} 29... Qb7 $17 {...Bc3 is the strong threat.} 30. Be2 Qb6) 30. Qh6 $1 {[%emt 0:10:59]} Qc5 {[%emt 0:01:04][%cal Oe5e4][%mdl 1024] [#] White must now prevent ...e4! Black has compensation.} (30... Qa5 $5 {[%cal Rb4c5]} 31. Re2 (31. Qxf6 e4 $17) 31... Kb8 32. Qxf6 e4 $15) 31. c3 {[%emt 0:01:13]} Ba5 {[%emt 0:01:48] And now ...Bb6 would win. A strong pair of Bishops.} 32. Nd2 $2 {[%emt 0:01:36][%mdl 8192]} (32. Bc2 $1 $11) 32... Bb6 {[%emt 0:00:25] Weighted Error Value: White=0.53/Black=0.19 (very precise)} 0-1

[Event "French-ch Youth U18 2022"]
[Site "Agen"]
[Date "2022.04.19"]
[Round "4.3"]
[White "Avanesyan, Davit"]
[Black "Mas, Victor"]
[Result "0-1"]
[ECO "C45"]
[WhiteElo "2065"]
[BlackElo "2190"]
[Annotator "TA"]
[PlyCount "94"]
[EventDate "2022.04.17"]
[EventType "swiss"]
[EventCountry "FRA"]
[SourceTitle "playchess.com"]
[Source "ChessBase"]
[SourceQuality "1"]
[TimeControl "5400+30"]

{[%evp 17,94,0,0,-6,11,0,35,0,0,-40,-35,-50,-32,-59,-57,-57,-60,-55,-65,-58,-59,-81,-88,-89,-33,-34,-17,-37,-17,-22,-17,-18,-21,-40,-22,-33,-34,-29,-30,-46,-50,-69,-90,-97,-93,-337,-177,-262,-231,-177,-173,-447,-447,-443,-442,-435,-429,-423,-418,-345,-285,-1474,-1445,-1464,-1024,-6527,-29979,-29984,-29985,-29987,-29988,-29988,-29989,-29989,-29990,-29990,-29991,-29992,-29989]} 1. e4 {[%emt 0:00:03]} e5 {[%emt 0:00:32]} 2. Nf3 {[%emt 0:00:07]} Nc6 {[%emt 0:00:18]} 3. d4 {[%emt 0:01:49]} exd4 {[%emt 0:00:07]} 4. Nxd4 {[%emt 0:00:04]} Nf6 {[%emt 0:00:33]} 5. Nxc6 {[%emt 0:00:09]} bxc6 {[%emt 0:00:07]} 6. e5 {[%emt 0:00:06]} Qe7 {[%emt 0:00:14]} 7. Qe2 {[%emt 0:00:06]} Nd5 {[%emt 0:00:06]} 8. c4 {[%emt 0:00:07]} Nb6 {[%emt 0:00:12]} 9. Nd2 {[%emt 0:01:28]} Qe6 {[%emt 0:02:41]} 10. Qe4 {[%emt 0:06:43] is the legacy move (10.b3). C45: Scotch Game.} a5 {[%emt 0:27:37]} 11. Be2 {[%emt 0:05:29]} Bb4 {[%emt 0:09:54] [#]} (11... d5 $5 {[%cal Rd5e4]} 12. exd6 Bxd6 $11) 12. a3 $146 {[%emt 0:16:03] White is slightly better.} ({Predecessor:} 12. O-O Ba6 13. Bg4 Qe7 14. b3 Bxd2 15. Bxd2 d5 16. Qf3 O-O 17. Rfe1 Bc8 18. Rac1 {1-0 (29) Arribas Lopez,A (2480)-Yim,S (2254) Dallas 2018}) 12... d5 {[%emt 0:01:45]} 13. Qf4 {[%emt 0:07:08]} Be7 {[%emt 0:06:38]} 14. Nf3 {[%emt 0:05:52]} Nxc4 {[%emt 0:04:44]} 15. Bxc4 {[%emt 0:03:46]} dxc4 {[%emt 0:00:02]} 16. O-O {[%emt 0:00:10]} O-O {[%emt 0:01:32]} 17. Bd2 {[%emt 0:01:04]} Qg6 {[%emt 0:01:53]} 18. Rfe1 {[%emt 0:01:17]} Be6 {[%emt 0:00:42]} 19. Rad1 {[%emt 0:04:49]} Rfd8 {[%emt 0:03:50]} 20. Bc3 {[%emt 0:01:37]} Bh3 {[%emt 0:02:00]} (20... Rd3 $17) 21. Qg3 {[%emt 0:01:30]} Qxg3 {[%emt 0:00:23]} 22. hxg3 {[%emt 0:00:06]} Be6 {[%emt 0:01:13]} 23. Rxd8+ {[%emt 0:00:51]} Bxd8 {[%emt 0:01:02]} 24. Nd4 {[%emt 0:00:14]} Bd5 {[%emt 0:00:24]} 25. Nf5 {[%emt 0:03:08]} Kf8 {[%emt 0:04:40]} 26. Rd1 {[%emt 0:02:08]} g6 {[%emt 0:01:09]} 27. Ne3 {[%emt 0:00:10]} Be6 {[%emt 0:00:55]} 28. Rc1 {[%emt 0:04:38]} Bg5 {[%emt 0:05:37]} 29. f4 {[%emt 0:00:29]} Be7 {[%emt 0:00:08]} 30. Bd4 {[%emt 0:00:14] Inhibits Bc5.} Rd8 {[%emt 0:01:21]} 31. Bc3 {[%emt 0:01:34] [#] Loses the game.} (31. Ba7 $17) 31... Rd3 {[%emt 0:00:28]} (31... Bc5 $142 32. Kf2 Rd3) 32. Nf1 {[%emt 0:02:48]} (32. Nc2 {keeps fighting.}) 32... a4 {[%emt 0:01:04][%cal Ba5a4,Ba4a3,Ba3b2][%mdl 32]} 33. Kh2 {[%emt 0:00:28]} Bc5 {[%emt 0:01:40]} 34. Re1 $2 {[%emt 0:00:58] [#]} (34. Nd2) 34... Bxa3 $1 $19 {[%emt 0:00:28][%cal Od3c3][%mdl 512]} 35. Ra1 {[%emt 0:01:07]} Bc5 {[%emt 0:00:01][%cal Oa4a3]} 36. Nd2 {[%emt 0:00:22]} a3 {[%emt 0:00:11]} 37. Ne4 {[%emt 0:00:25]} Be7 {[%emt 0:01:09]} 38. Nf6 {[%emt 0:02:12]} Bd5 {[%emt 0:02:02]} 39. Be1 $2 {[%emt 0:01:11]} (39. g4) 39... axb2 {[%emt 0:01:44]} 40. Ra8+ {[%emt 0:10:06]} Kg7 {[%emt 0:00:02]} 41. Rg8+ {[%emt 0:00:28]} Kh6 {[%emt 0:00:03]} 42. g4 {[%emt 0:03:05] Black mates.} Bxf6 {[%emt 0:00:31]} 43. Bb4 {[%emt 0:00:05]} Bg7 {[%emt 0:01:11]} ({Don't do} 43... Rh3+ 44. gxh3 c5 45. Bxc5 Bg7 46. g5+ Kh5 47. Rxg7 h6 48. Rh7 b1=Q 49. Rxh6#) 44. Be7 {[%emt 0:00:13]} f6 $1 {[%emt 0:00:13]} ({Much less strong is} 44... Rh3+ 45. Kxh3 g5 46. fxg5+ Kg6 47. Bf6 Bxg2+ 48. Kxg2 b1=Q 49. Rxg7#) 45. Rb8 {[%emt 0:00:09]} Rb3 {[%emt 0:01:11]} 46. Rxb3 {[%emt 0:02:06]} cxb3 {[%emt 0:00:19]} 47. Kh3 {[%emt 0:00:16]} Be6 {[%emt 0:00:28] Weighted Error Value: White=0.56/Black=0.14 (very precise)} ({Resist} 47... b1=Q 48. g5+ fxg5 49. Bxg5+ Kh5 50. g4#) 0-1

[Event "French-ch Youth U18 2022"]
[Site "Agen"]
[Date "2022.04.19"]
[Round "4.4"]
[White "Decuigniere, Tom"]
[Black "Arhan, Tanguy"]
[Result "1-0"]
[ECO "E98"]
[WhiteElo "2292"]
[BlackElo "2013"]
[Annotator "TA"]
[PlyCount "67"]
[EventDate "2022.04.17"]
[EventType "swiss"]
[EventCountry "FRA"]
[SourceTitle "playchess.com"]
[Source "ChessBase"]
[SourceQuality "1"]
[TimeControl "5400+30"]

{[%evp 29,67,34,81,-46,-12,-10,1,-6,14,0,104,49,116,64,55,46,46,12,12,7,18,0,176,182,146,5,177,175,164,151,149,146,153,141,143,106,481,459,436,372]} 1. d4 {[%emt 0:00:03]} Nf6 {[%emt 0:00:14]} 2. c4 {[%emt 0:00:08]} g6 {[%emt 0:00:32]} 3. Nc3 {[%emt 0:00:19]} Bg7 {[%emt 0:00:15]} 4. e4 {[%emt 0:00:32]} d6 {[%emt 0:00:15]} 5. Nf3 {[%emt 0:00:21]} O-O {[%emt 0:00:17]} 6. Be2 {[%emt 0:00:15]} e5 {[%emt 0:00:26]} 7. O-O {[%emt 0:00:22]} Nc6 {[%emt 0:00:51]} 8. d5 {[%emt 0:00:13]} Ne7 {[%emt 0:00:09]} 9. Ne1 {[%emt 0:00:09]} Nd7 {[%emt 0:00:54]} 10. Be3 {[%emt 0:00:10]} f5 {[%emt 0:00:36]} 11. f3 {[%emt 0:00:04]} f4 {[%emt 0:00:25]} 12. Bf2 {[%emt 0:00:04]} g5 {[%emt 0:03:08]} 13. Rc1 {[%emt 0:00:06]} Rf7 {[%emt 0:07:48]} 14. b4 {[%emt 0:04:18]} Nf6 {[%emt 0:08:59]} 15. c5 {[%emt 0:02:10]} Ng6 {[%emt 0:00:36]} 16. g4 {[%emt 0:12:53] E99: King's Indian: Classical Main Line: 9 Ne1 Nd7 10 f3 f5.} (16. a4 $16) 16... fxg3 {[%emt 0:12:15]} 17. hxg3 {[%emt 0:00:09]} h5 {[%emt 0:00:18]} 18. Ng2 {[%emt 0:03:33] The position is equal.} (18. Be3 $5 {[%cal Re3g5]}) 18... Bh3 {[%emt 0:16:25][%cal Oh5h4]} 19. Be3 {[%emt 0:06:40] [#]} g4 $146 {[%emt 0:08:43]} (19... h4 $11) ({Predecessor:} 19... Nh7 20. Rf2 Bf6 21. Ne1 Nf4 22. Rh2 Nxe2+ 23. Nxe2 g4 24. f4 h4 25. Nd3 Qe8 {½-½ (48) Diogo,V (2212)-Sousa,A (2082) Famalicao 2014}) 20. Bg5 {[%emt 0:02:17]} ({White should play} 20. fxg4 $16 Nxg4 21. Rxf7 Kxf7 22. Qd2) 20... Qf8 {[%emt 0:02:22] [#]} (20... a5 $14) 21. cxd6 {[%emt 0:11:33]} (21. fxg4 $1 $16 Nxg4 22. Qd2) 21... cxd6 $14 {[%emt 0:00:22][%cal Oh5h4]} 22. fxg4 {[%emt 0:09:54]} Nxg4 {[%emt 0:03:10]} 23. Bxg4 {[%emt 0:00:30]} Bxg4 {[%emt 0:03:34]} 24. Qd3 {[%emt 0:00:55]} Bf6 {[%emt 0:06:10] A strong pair of Bishops.} 25. Qe3 {[%emt 0:02:21] And now Bxf6 would win.} Kh7 $2 {[%emt 0:11:24]} (25... a6 $11 {and Black is okay.}) 26. Nb5 {[%emt 0:03:16] Black must now prevent Rc7.} ({Stronger than} 26. Qf2 Nf4 27. Bxf4 (27. gxf4 $2 Bxg5 28. Nb5 exf4 $19) 27... exf4 28. gxf4 (28. Nxf4 Qg7 $17) 28... Qg7 $15) 26... a6 {[%emt 0:02:13] [#]} 27. Na3 {[%emt 0:05:54] &Bianco is much more active.} (27. Nc7 $1 $16 {[%cal Rc7a8]} Rc8 28. Bxf6 (28. Ne6 Bxe6 29. dxe6 Rxc1 $14) 28... Rxf6 29. Qg5) 27... Qe7 $2 {[%emt 0:04:31]} (27... b5 $11 {and Black has nothing to worry.}) 28. Bxf6 {[%emt 0:00:38]} Rxf6 {[%emt 0:00:03]} 29. Rxf6 {[%emt 0:00:31]} Qxf6 {[%emt 0:00:06]} 30. Rc7+ {[%emt 0:03:48]} Ne7 {[%emt 0:00:09]} 31. Qf2 {[%emt 0:00:24]} Qg7 {[%emt 0:00:15]} 32. Qb6 {[%emt 0:00:36]} Qf6 {[%emt 0:01:57][%mdl 8192]} (32... Rc8 $16 {is more resistant.}) 33. Nc4 $18 {[%emt 0:00:57]} Rc8 {[%emt 0:05:49]} (33... Rf8 $2 34. Qxd6 Qxd6 35. Nxd6) 34. Nxd6 {[%emt 0:01:28] Weighted Error Value: White=0.38/Black=0.92} ({Less strong is} 34. Rxc8 Bxc8 35. Nxd6 Bg4 $18) 1-0

[Event "French-ch Youth U18 2022"]
[Site "Agen"]
[Date "2022.04.19"]
[Round "4.5"]
[White "Blanquet, Camille"]
[Black "Renaudin, Axelle"]
[Result "1-0"]
[ECO "A05"]
[WhiteElo "1928"]
[BlackElo "1591"]
[Annotator "TA"]
[PlyCount "35"]
[EventDate "2022.04.17"]
[EventType "swiss"]
[EventCountry "FRA"]
[SourceTitle "playchess.com"]
[Source "ChessBase"]
[SourceQuality "1"]
[TimeControl "5400+30"]

{[%evp 13,35,6,24,18,18,13,10,1,241,259,543,556,533,376,29963,29964,29964,29964,5718,5717,29992,29993,29993,29994]} 1. Nf3 {[%emt 0:00:08]} Nf6 {[%emt 0:00:05]} 2. c4 {[%emt 0:00:09]} e6 {[%emt 0:00:06]} 3. g3 {[%emt 0:00:54]} b6 {[%emt 0:04:00]} 4. Bg2 {[%emt 0:01:36]} Bb7 {[%emt 0:00:06]} 5. O-O {[%emt 0:00:54][%cal Bh1f1,Bf1d1,Bd1d7][%mdl 32]} c5 {[%emt 0:01:31]} 6. d4 {[%emt 0:01:13]} cxd4 {[%emt 0:04:22]} 7. Qxd4 {[%emt 0:01:14] 7.Qxd4 scores better than 7.Nxd4.} Bc5 {[%emt 0:04:17]} 8. Qf4 {[%emt 0:02:29] A30: Symmetrical English: Double Fianchetto and Hedgehog.} d5 {[%emt 0:09:12]} 9. Nc3 {[%emt 0:06:03] [#]} dxc4 $146 {[%emt 0:05:57]} ({Predecessor:} 9... O-O 10. Rd1 Qe7 11. cxd5 Nxd5 12. Nxd5 Bxd5 13. b3 Nd7 14. Bb2 Rfd8 15. Rd2 Bb4 {0-1 (55) Tazbir,M (2561)-Georgescu,T (2396) Kazan 2013}) 10. Rd1 {[%emt 0:09:34] The position is equal.} Nbd7 $2 {[%emt 0:02:19]} (10... Qe7) (10... Qc8 $11 {and Black has nothing to worry.}) 11. Ne5 $18 {[%emt 0:04:08][%mdl 64] Discovered Attack} (11. Qxc4 Rc8 12. Qa4 Bc6) ({Weaker is} 11. Qxc4 Rc8 12. Qa4 Bc6 $11) 11... Bxg2 $2 {[%emt 0:03:03] [#]} (11... g5 12. Rxd7 (12. Qxg5 Bxg2 13. Qg7 Rf8) 12... gxf4 13. Rxd8+ Rxd8) (11... g5 12. Rxd7 (12. Qxg5 Bxg2 13. Kxg2 Qc7 $16) 12... gxf4 13. Rxd8+ Rxd8) 12. Rxd7 $1 {[%emt 0:07:02][%mdl 512]} Qc8 {[%emt 0:03:16][%cal Oe8g8]} 13. Kxg2 {[%emt 0:05:37]} Nxd7 $2 {[%emt 0:14:48]} (13... O-O $18) 14. Qxf7+ {[%emt 0:00:09]} Kd8 {[%emt 0:00:04]} 15. Bg5+ {[%emt 0:01:10]} Kc7 {[%emt 0:00:17]} 16. Rd1 {[%emt 0:04:33][%cal Rd1d7]} Rf8 {[%emt 0:05:43]} 17. Rxd7+ {[%emt 0:00:41]} Kb8 {[%emt 0:00:07]} 18. Qxe6 {White took control after the opening.  Weighted Error Value: White=0.19 (very precise) /Black=1.89} 1-0